{"text_format":"3","workbook":"xlsx","n_sheets":6,"sheets":["Toelichting","Variabele prijs","Capaciteitsvergoeding","Tarieven HH klanten","Tarieven NIET-HH klanten","Occasioneel NIET-klantgebonden"],"not_rendered":{"defined_names":6,"comments":3},"read":"whole","date_system":"1900"}

{"sheet":"Toelichting","index":0,"n_rows":18,"n_cols":2,"rows_kept":18,"merged":[[12,1,12,18]]}
["Toelichting opvraging tarieven"]
[]
["Volgende werkbladen bevatten een opvraging van de WaterRegulator aan de watermaatschappij over het geheel aan gereguleerde tarieven gerelateerd aan de drinkwatervoorziening."]
[null,"- Het werkblad \"Variabele prijs\" bevat de indexering van de maximumtarieven voor de variabele prijs, evenals het toegepaste tarief."]
[null,"- Het werkblad \"Capaciteitsvergoeding\" bevat de maximumtarieven voor de capaciteitsvergoeding, evenals het toegepaste tarief."]
[null,"- De volgende 3 werkbladen bevatten de eenmalige tarieven en vergoedingen verdeeld naar klantengroep (Huishoudelijk, Niet-huishoudelijk en Niet-klantgebonden)"]
[null,"- Voor de verwerking van de budgetneutraliteit werd een veld toegevoegd aan het werkblad \"Variabele prijs\""]
[]
["Nieuwe en gewijzigde tarieven kunnen enkel ingevoerd worden op 1 januari (art. 13 BVR Tariefregulering) en dienen vooraf bij de WaterRegulator aangevraagd te worden (art. 12bis Drinkwaterdecreet en uitvoeringsbesluiten)"]
[]
["Werkwijze"]
["Correctie","- Reeds ingevulde tarieven controleren en eventueel corrigeren. Correcties in rood aanduiden. Geen gegevens verwijderen."]
["Ontbrekend","- De gehanteerde tarieven invullen in de corresponderende velden. De referentiedag is steeds 1 januari. \n  Kleine verduidelijkingen bij eenmalige tarieven en vergoedingen kunnen in de kolom \"Opmerkingen en toelichtingen\". \n  De onderbouwing van een nieuw of hoger eenmalig tarief wordt in een apart document aangeleverd."]
["NVT","- Items die niet van toepassingen zijn met ‘NVT’ aanduiden"]
[null,"- Toegepaste eenmalige tarieven en vergoedingen die niet voorkomen in de standaardlijst toevoegen onder \"Andere\" met een passende omschrijving"]
[]
["Vragen?","waterregulator@vmm.be"]
[null,"053 72 67 24"]

{"sheet":"Variabele prijs","index":1,"n_rows":135,"n_cols":6,"rows_kept":135,"merged":[[23,0,23,1],[46,0,46,1],[92,0,92,1]]}
["Berekening geïndexeerde maximumtarieven","JAAR",{"$nulls":3},"Legende"]
[{"$nulls":5},"Geïndexeerd"]
["Watermaatschappij:",{"$nulls":4},"Uit tariefplan"]
["TOTAAL aantal bedeelde gemeenten:",{"$nulls":4},"Verschil"]
["Aantal GEDEELTELIJK bedeelde gemeenten:",{"$nulls":4},"In te vullen"]
["Aantal VOLLEDIG bedeelde gemeenten",{"$f":"B4-B5","v":0},{"$nulls":3},"Ontbrekend"]
["Startjaar tarifaire periode:"]
["Gewogen index volgens BVR:",{"$f":"$A$128","v":0.2}]
["Bedrag verwerking budgetneutraliteit"]
[]
["Huishoudelijke abonnees","Maximumtarief in €/m3","Toegepast tarief in €/m3","Opmerkingen"]
["Geïndexeerd basistarief",{"$f":"C74","v":{"v":0,"d":"0.0000"}}]
["Geïndexeerd comforttarief",{"$f":"C83","v":{"v":0,"d":"0.0000"}}]
["Geïndexeerd sociaal basistarief",{"$f":"C86","v":{"v":0,"d":"0.0000"}}]
["Geïndexeerd sociaal comforttarief",{"$f":"C89","v":{"v":0,"d":"0.0000"}}]
["Niet-huishoudelijke abonnees","Maximumtarief in €/m3","Toegepast tarief in €/m3","Bovengrens schijf in m3","Opmerkingen"]
["Geïndexeerd vlak tarief ",{"$f":"C118","v":{"v":0,"d":"0.0000"}},null,500]
["Geïndexeerd sociaal vlak tarief ",{"$f":"C123","v":{"v":0,"d":"0.0000"}},null,500]
["Indu 1","NVT"]
["Indu 2","NVT"]
["Indu 3","NVT"]
[]
[null,"Omschrijving/Formule"]
["Raming nodige opbrengsten IWF drinkwatercomponent",null,"Geïndexeerd","Waarden tariefplan","Index","Verschil na indexering"]
["nodige opbrengsten IWF drinkwatercomponent","= (Td ( T400, rij12) x geleverd opbrengend drinkwater aan abonnees (T200064) - bedrag verwerking budgetneutraliteit",{"$f":"(C26*C27)-$B$9","v":{"v":0,"d":"0.0000"}},null,null,{"$f":"C25-D25","v":{"v":0,"d":"0.0000"}}]
[null,"Td (€/m³) ",{"$f":"D26*E26","v":{"v":0,"d":"0.0000"}},null,{"$f":"$A$128","v":{"v":0.2,"d":"0.2000"}},{"$f":"C26-D26","v":{"v":0,"d":"0.0000"}}]
[null,"Totaal alle abonnees",{"$f":"D27","v":{"v":0,"d":"0.0000"}},null,null,{"v":0,"d":"0.0000"}]
["nodige opbrengsten HH","= (nodige opbrengsten (hogere cel) x  (aandeel omzet HH (T330006)/'omzet uit verbruiks en afrekeningsfacturen aan abonnees' (T330039))) ",{"$f":"IFERROR(C29*(C30/C31),)","v":{"v":0,"d":"0.0000"}},null,null,{"v":0,"d":"0.0000"}]
[null,{"$f":"A25","v":"nodige opbrengsten IWF drinkwatercomponent"},{"$f":"C25","v":{"v":0,"d":"0.0000"}},null,null,{"v":0,"d":"0.0000"}]
[null,"Omzet HH-abonnees",{"$f":"D30","v":{"v":0,"d":"0.0000"}},null,null,{"v":0,"d":"0.0000"}]
[null,"Omzet uit verbruiks en afrekeningsfacturen aan abonnees",{"$f":"D31","v":{"v":0,"d":"0.0000"}},null,null,{"v":0,"d":"0.0000"}]
["nodige opbrengsten NHH","= (nodige opbrengsten (hogere cel) - nodige opbrengsten HH)",{"$f":"C33-C34","v":{"v":0,"d":"0.0000"}},null,null,{"v":0,"d":"0.0000"}]
[null,{"$f":"A25","v":"nodige opbrengsten IWF drinkwatercomponent"},{"$f":"C25","v":{"v":0,"d":"0.0000"}},null,null,{"v":0,"d":"0.0000"}]
[null,{"$f":"A28","v":"nodige opbrengsten HH"},{"$f":"C28","v":{"v":0,"d":"0.0000"}},null,null,{"v":0,"d":"0.0000"}]
[]
["In regelgeving vastgelegd"]
["standaard vastrecht","= 50 €",50,null,null,{"$f":"C37-D37","v":50}]
["standaard korting vastrecht per persoon","= 10 €",10,null,null,10]
["sociaal vastrecht","= 20% x standaard vastrecht",{"$f":"C40*C41","v":10},null,null,10]
[null,"sociale tarief vastrecht 1/5",0.2,null,null,0.2]
[null,{"$f":"A37","v":"standaard vastrecht"},{"$f":"C37","v":50},null,null,50]
["sociale korting vastrecht per persoon","= 20% x standaard korting per persoon",{"$f":"C43*C44","v":2},null,null,2]
[null,"sociale tarief korting per persoon 1/5",0.2,null,null,0.2]
[null,{"$f":"A38","v":"standaard korting vastrecht per persoon"},{"$f":"C38","v":10},null,null,10]
["verhouding comfort-tarief / basis-tarief hh abonnees","= 2",2,null,null,2]
[]
["Berekening tarieven progressief variabele prijs HH"]
["Omzet afkomstig van capaciteitsvergoeding","= T331025",{"$f":"D48*E48","v":{"v":0,"d":"0.0000"}},null,{"$f":"$A$128","v":{"v":0.2,"d":"0.2000"}},{"$f":"C48-D48","v":{"v":0,"d":"0.0000"}}]
["opbrengsten uit vastrecht ","= som onderliggende",{"$f":"C50+C53+C58+C63","v":{"v":0,"d":"0.0000"}},null,null,{"v":0,"d":"0.0000"}]
["vastrecht uit wooneenheden zonder gedomicilieerden","= 50 € x T210010",{"$f":"C51*C52","v":{"v":0,"d":"0.0000"}},null,null,{"v":0,"d":"0.0000"}]
[null,{"$f":"A37","v":"standaard vastrecht"},{"$f":"C37","v":50},null,null,50]
[null,"Aangesloten wooneenheden zonder gedomicilieerden",{"$f":"D52","v":0},null,null,0]
["vastrecht uit wooneenheden zonder sociaal tarief","= (50 € x T210008) - (10 € x T210014)",{"$f":"(C54*C55)-(C56*C57)","v":{"v":0,"d":"0.0000"}},null,null,{"v":0,"d":"0.0000"}]
[null,{"$f":"A37","v":"standaard vastrecht"},{"$f":"C37","v":50},null,null,50]
[null,"Aangesloten wooneenheden met gedomicilieerden zonder sociaal tarief",{"$f":"D55","v":0},null,null,0]
[null,{"$f":"A38","v":"standaard korting vastrecht per persoon"},{"$f":"C38","v":10},null,null,10]
[null,"Aangesloten gedomicilieerden distributiegebied waarvoor korting op vastrecht toegekend wordt zonder sociaal tarief",{"$f":"D57","v":0},null,null,0]
["vastrecht uit wooneenheden met sociaal tarief","= (10 € x T210009) - (2 € x T210015)",{"$f":"(C59*C60)-(C61*C62)","v":{"v":0,"d":"0.0000"}},null,null,{"v":0,"d":"0.0000"}]
[null,{"$f":"A39","v":"sociaal vastrecht"},{"$f":"C39","v":10},null,null,10]
[null,"Aangesloten wooneenheden met gedomicilieerden met sociaal tarief",{"$f":"D60","v":0},null,null,0]
[null,{"$f":"A42","v":"sociale korting vastrecht per persoon"},{"$f":"C42","v":2},null,null,2]
[null,"Aangesloten gedomicilieerden distributiegebied waarvoor korting op vastrecht toegekend wordt met sociaal tarief",{"$f":"D62","v":0},null,null,0]
["vastrecht uit aanrekening per watermeter","= 50 € x T210011",{"$f":"C64*C65","v":{"v":0,"d":"0.0000"}},null,null,{"v":0,"d":"0.0000"}]
[null,{"$f":"A37","v":"standaard vastrecht"},{"$f":"C37","v":50},null,null,50]
[null,"Aantal watermeters vastrecht",{"$f":"D65","v":0},null,null,0]
["opbrengsten uit afwijkend tarief","= T331030 + T331034",{"$f":"C67+C68","v":{"v":0,"d":"0.0000"}},null,null,{"v":0,"d":"0.0000"}]
[null,"      Basisverbruik met afwijkend tarief",{"$f":"D67*E67","v":{"v":0,"d":"0.0000"}},null,{"$f":"$A$128","v":{"v":0.2,"d":"0.2000"}},{"v":0,"d":"0.0000"}]
[null,"      Comfortverbruik met afwijkend tarief",{"$f":"D68*E68","v":{"v":0,"d":"0.0000"}},null,{"v":0.2,"d":"0.2000"},{"v":0,"d":"0.0000"}]
["opbrengsten berekend uit variabele prijs","= berekend uit hogere cellen\n= nodige opbrengsten HH - opbrengsten HH uit capaciteitsvergoeding - opbrengsten HH uit vastrecht - opbrengsten uit afwijkend tarief HH",{"$f":"C70-C71-C72-C73","v":{"v":0,"d":"0.0000"}},null,null,{"v":0,"d":"0.0000"}]
[null,{"$f":"A28","v":"nodige opbrengsten HH"},{"$f":"C28","v":{"v":0,"d":"0.0000"}},null,null,{"v":0,"d":"0.0000"}]
[null,{"$f":"A48","v":"Omzet afkomstig van capaciteitsvergoeding"},{"$f":"C48","v":{"v":0,"d":"0.0000"}},null,null,{"v":0,"d":"0.0000"}]
[null,{"$f":"A49","v":"opbrengsten uit vastrecht "},{"$f":"C49","v":{"v":0,"d":"0.0000"}},null,null,{"v":0,"d":"0.0000"}]
[null,{"$f":"A66","v":"opbrengsten uit afwijkend tarief"},{"$f":"C66","v":{"v":0,"d":"0.0000"}},null,null,{"v":0,"d":"0.0000"}]
["basistarief","= opbrengsten uit variabele prijs / (T200067 + (T200068 / 5) + (2 x T200071) + ( 2 / 5 x T200072))",{"$f":"ROUND(IFERROR(C75/(C76+(C77*C78)+(C79*C80)+(C81*C82)),),4)","v":{"v":0,"d":"0.0000"}},null,null,{"v":0,"d":"0.0000"}]
[null,{"$f":"A69","v":"opbrengsten berekend uit variabele prijs"},{"$f":"C69","v":{"v":0,"d":"0.0000"}},null,null,{"v":0,"d":"0.0000"}]
[null,"Basisverbruik Abonnee zonder sociaal tarief",{"$f":"D76","v":{"v":0,"d":"0.0000"}},null,null,{"v":0,"d":"0.0000"}]
[null,"Basisverbruik Abonnee met sociaal tarief",{"$f":"D77","v":{"v":0,"d":"0.0000"}},null,null,{"v":0,"d":"0.0000"}]
[null,"sociaal tarief 1/5",{"$f":"1/5","v":0.2},null,null,0.2]
[null,{"$f":"A45","v":"verhouding comfort-tarief / basis-tarief hh abonnees"},{"$f":"C45","v":2},null,null,2]
[null,"Comfortverbruik Abonnee zonder sociaal tarief",{"$f":"D80","v":{"v":0,"d":"0.0000"}},null,null,{"v":0,"d":"0.0000"}]
[null,"sociaal tarief comfortverbruik 2/5",{"$f":"2/5","v":0.4},null,null,0.4]
[null,"Comfortverbruik Abonnee met sociaal tarief",{"$f":"D82","v":{"v":0,"d":"0.0000"}},null,null,{"v":0,"d":"0.0000"}]
["Comforttarief","= berekend uit hogere cel\n= 2 x basistarief",{"$f":"C84*C85","v":{"v":0,"d":"0.0000"}},null,null,{"v":0,"d":"0.0000"}]
[null,{"$f":"A45","v":"verhouding comfort-tarief / basis-tarief hh abonnees"},{"$f":"C45","v":2},null,null,2]
[null,{"$f":"A74","v":"basistarief"},{"$f":"C74","v":{"v":0,"d":"0.0000"}},null,null,{"v":0,"d":"0.0000"}]
["sociaal basistarief","= berekend uit hogere cel\n= 20% x basistarief",{"$f":"ROUND(C87*C88,4)","v":{"v":0,"d":"0.0000"}},null,null,{"v":0,"d":"0.0000"}]
[null,{"$f":"B78","v":"sociaal tarief 1/5"},{"$f":"C78","v":0.2},null,null,0.2]
[null,{"$f":"A74","v":"basistarief"},{"$f":"C74","v":{"v":0,"d":"0.0000"}},null,null,{"v":0,"d":"0.0000"}]
["sociaal comforttarief","= berekend uit hogere cel\n= 2 x sociaal basistarief",{"$f":"C90*C91","v":{"v":0,"d":"0.0000"}},null,null,{"v":0,"d":"0.0000"}]
[null,"verhouding comfort-tarief / basis-tarief hh abonnees",2,null,null,2]
[null,{"$f":"A86","v":"sociaal basistarief"},{"$f":"C86","v":{"v":0,"d":"0.0000"}},null,null,{"v":0,"d":"0.0000"}]
[]
["Berekening tarief variabele prijs NHH"]
["Omzet afkomstig van capaciteitsvergoeding","= T331040",{"$f":"D94*E94","v":{"v":0,"d":"0.0000"}},null,{"$f":"$A$128","v":{"v":0.2,"d":"0.2000"}},{"$f":"C94-D94","v":{"v":0,"d":"0.0000"}}]
["opbrengsten uit vastrecht ","= som onderliggende",{"$f":"C96+C99+C104+C109","v":{"v":0,"d":"0.0000"}},null,null,{"$f":"C95-D95","v":{"v":0,"d":"0.0000"}}]
["vastrecht uit wooneenheden zonder gedomicilieerden","= 50 € x T210024",{"$f":"C97*C98","v":{"v":0,"d":"0.0000"}},null,null,{"v":0,"d":"0.0000"}]
[null,{"$f":"A37","v":"standaard vastrecht"},{"$f":"C37","v":50},null,null,50]
[null,"Aangesloten wooneenheden zonder gedomicilieerden",{"$f":"D98","v":0},null,null,0]
["vastrecht uit wooneenheden zonder sociaal tarief","= (50 € xT210022) - (10 € x T210028)",{"$f":"(C100*C101)-(C102*C103)","v":{"v":0,"d":"0.0000"}},null,null,{"v":0,"d":"0.0000"}]
[null,{"$f":"A37","v":"standaard vastrecht"},{"$f":"C37","v":50},null,null,50]
[null,"Aangesloten wooneenheden met gedomicilieerden zonder sociaal tarief",{"$f":"D101","v":0},null,null,0]
[null,{"$f":"A38","v":"standaard korting vastrecht per persoon"},{"$f":"C38","v":10},null,null,10]
[null,"Aangesloten gedomicilieerden distributiegebied waarvoor korting op vastrecht toegekend wordt zonder sociaal tarief",{"$f":"D103","v":0},null,null,0]
["vastrecht uit wooneenheden met sociaal tarief","= (10 € x T210023) - (2 € x T210029)",{"$f":"(C105*C106)-(C107*C108)","v":{"v":0,"d":"0.0000"}},null,null,{"v":0,"d":"0.0000"}]
[null,{"$f":"A39","v":"sociaal vastrecht"},{"$f":"C39","v":10},null,null,10]
[null,"Aangesloten wooneenheden met gedomicilieerden met sociaal tarief",{"$f":"D106","v":0},null,null,0]
[null,{"$f":"A42","v":"sociale korting vastrecht per persoon"},{"$f":"C42","v":2},null,null,2]
[null,"Aangesloten gedomicilieerden distributiegebied waarvoor korting op vastrecht toegekend wordt met sociaal tarief",{"$f":"D108","v":0},null,null,0]
["vastrecht uit aanrekening per watermeter","= 50 € x T210025",{"$f":"C110*C111","v":{"v":0,"d":"0.0000"}},null,null,{"v":0,"d":"0.0000"}]
[null,{"$f":"A37","v":"standaard vastrecht"},{"$f":"C37","v":50},null,null,50]
[null,"Aantal watermeters vastrecht",{"$f":"D111","v":0},null,null,0]
["  Omzet afkomstig van afwijkend tarief","= T331045",{"$f":"D112*E112","v":{"v":0,"d":"0.0000"}},null,{"$f":"$A$128","v":{"v":0.2,"d":"0.2000"}},{"v":0,"d":"0.0000"}]
["opbrengsten uit (standaard) variabele prijs","= berekend uit hogere cellen\n= nodige opbrengsten NHH - opbrengsten NHH uit capaciteitsvergoeding - opbrengsten NHH uit vastrecht - opbrengsten uit afwijkend tarief",{"$f":"C114-C115-C116-C117","v":{"v":0,"d":"0.0000"}},null,null,{"v":0,"d":"0.0000"}]
[null,{"$f":"A32","v":"nodige opbrengsten NHH"},{"$f":"C32","v":{"v":0,"d":"0.0000"}},null,null,{"v":0,"d":"0.0000"}]
[null,{"$f":"A94","v":"Omzet afkomstig van capaciteitsvergoeding"},{"$f":"C94","v":{"v":0,"d":"0.0000"}},null,null,{"v":0,"d":"0.0000"}]
[null,{"$f":"A95","v":"opbrengsten uit vastrecht "},{"$f":"C95","v":{"v":0,"d":"0.0000"}},null,null,{"v":0,"d":"0.0000"}]
[null,{"$f":"A112","v":"  Omzet afkomstig van afwijkend tarief"},{"$f":"C112","v":{"v":0,"d":"0.0000"}},null,null,{"v":0,"d":"0.0000"}]
["vlak tarief ","= opbrengsten uit (standaard) variabele prijs / (T200076 + (T200077 / 5))",{"$f":"ROUND(IFERROR(C119/(C120+(C121*C122)),),4)","v":{"v":0,"d":"0.0000"}},null,null,{"v":0,"d":"0.0000"}]
[null,{"$f":"A113","v":"opbrengsten uit (standaard) variabele prijs"},{"$f":"C113","v":{"v":0,"d":"0.0000"}},null,null,{"v":0,"d":"0.0000"}]
[null,"Verbruik vlak tarief Abonnee zonder sociaal tarief",{"$f":"D120","v":{"v":0,"d":"0.0000"}},null,null,{"v":0,"d":"0.0000"}]
[null,"sociaal tarief 1/5",{"$f":"1/5","v":0.2},null,null,0.2]
[null,"Verbruik vlak tarief Abonnee met sociaal tarief",{"$f":"D122","v":{"v":0,"d":"0.0000"}},null,null,{"v":0,"d":"0.0000"}]
["sociaal vlak tarief ","= 20% x vlak tarief",{"$f":"C124*C125","v":{"v":0,"d":"0.0000"}},null,null,{"v":0,"d":"0.0000"}]
[null,{"$f":"B121","v":"sociaal tarief 1/5"},{"$f":"C121","v":0.2},null,null,0.2]
[null,{"$f":"A118","v":"vlak tarief "},{"$f":"C118","v":{"v":0,"d":"0.0000"}},null,null,{"v":0,"d":"0.0000"}]
[]
["Gewogen index volgens BVR Tariefregulering"]
[{"$f":"(0.2+0.2*($C$130/$C$131)+0.5*($C$132/C133)+0.1*$C$134/C135)","v":0.2}]
[null,null,"Index","Maand","Jaar"]
["CPI","Jaar toepassing index - 1",null,null,{"$f":"$B$1-1","v":{"$error":"#VALUE!"}}]
[null,"Startjaar tarifaire periode - 2 ",101.61,null,{"$f":"$B$7-2","v":-2}]
["Referteloonkost index Agoria bedrijven > 10 wn, na 11/07/1981","Jaar toepassing index - 1",null,null,{"$f":"$B$1-1","v":{"$error":"#VALUE!"}}]
[null,"Startjaar tarifaire periode - 2 ",20.4558,null,{"$f":"$B$7-2","v":-2}]
["Materiaalindex Agoria index I voor openbare werken","Jaar toepassing index - 1",null,null,{"$f":"$B$1-1","v":{"$error":"#VALUE!"}}]
[null,"Startjaar tarifaire periode - 2 ",6649,null,{"$f":"$B$7-2","v":-2}]

{"sheet":"Capaciteitsvergoeding","index":2,"n_rows":24,"n_cols":6,"rows_kept":24,"merged":[[2,0,2,5]]}
["Berekening capaciteitsvergoeding"]
[]
["Capaciteitsvergoeding"]
["Diameter",{"$f":"_xlfn.CONCAT(\"Tarief op prijsniveau \", 'Variabele prijs'!B7-1)","v":"Tarief op prijsniveau -1"},"Geïndexeerd","Afgerond naar cent","Afgerond naar euro","Toegepast tarief"]
[null,null,{"$f":"B5*'Variabele prijs'!$A$128","v":{"v":0,"d":"0.0000"}},{"$f":"ROUNDDOWN(B5*'Variabele prijs'!$A$128,2)","v":{"v":0,"d":"0.00"}},{"$f":"ROUNDDOWN(B5*'Variabele prijs'!$A$128,0)","v":0}]
[null,null,{"$f":"B6*'Variabele prijs'!$A$128","v":{"v":0,"d":"0.0000"}},{"$f":"ROUNDDOWN(B6*'Variabele prijs'!$A$128,2)","v":{"v":0,"d":"0.00"}},{"$f":"ROUNDDOWN(B6*'Variabele prijs'!$A$128,0)","v":0}]
[null,null,{"$f":"B7*'Variabele prijs'!$A$128","v":{"v":0,"d":"0.0000"}},{"$f":"ROUNDDOWN(B7*'Variabele prijs'!$A$128,2)","v":{"v":0,"d":"0.00"}},{"$f":"ROUNDDOWN(B7*'Variabele prijs'!$A$128,0)","v":0}]
[null,null,{"$f":"B8*'Variabele prijs'!$A$128","v":{"v":0,"d":"0.0000"}},{"$f":"ROUNDDOWN(B8*'Variabele prijs'!$A$128,2)","v":{"v":0,"d":"0.00"}},{"$f":"ROUNDDOWN(B8*'Variabele prijs'!$A$128,0)","v":0}]
[null,null,{"$f":"B9*'Variabele prijs'!$A$128","v":{"v":0,"d":"0.0000"}},{"$f":"ROUNDDOWN(B9*'Variabele prijs'!$A$128,2)","v":{"v":0,"d":"0.00"}},{"$f":"ROUNDDOWN(B9*'Variabele prijs'!$A$128,0)","v":0}]
[null,null,{"$f":"B10*'Variabele prijs'!$A$128","v":{"v":0,"d":"0.0000"}},{"$f":"ROUNDDOWN(B10*'Variabele prijs'!$A$128,2)","v":{"v":0,"d":"0.00"}},{"$f":"ROUNDDOWN(B10*'Variabele prijs'!$A$128,0)","v":0}]
[null,null,{"$f":"B11*'Variabele prijs'!$A$128","v":{"v":0,"d":"0.0000"}},{"$f":"ROUNDDOWN(B11*'Variabele prijs'!$A$128,2)","v":{"v":0,"d":"0.00"}},{"$f":"ROUNDDOWN(B11*'Variabele prijs'!$A$128,0)","v":0}]
[null,null,{"$f":"B12*'Variabele prijs'!$A$128","v":{"v":0,"d":"0.0000"}},{"$f":"ROUNDDOWN(B12*'Variabele prijs'!$A$128,2)","v":{"v":0,"d":"0.00"}},{"$f":"ROUNDDOWN(B12*'Variabele prijs'!$A$128,0)","v":0}]
[null,null,{"$f":"B13*'Variabele prijs'!$A$128","v":{"v":0,"d":"0.0000"}},{"$f":"ROUNDDOWN(B13*'Variabele prijs'!$A$128,2)","v":{"v":0,"d":"0.00"}},{"$f":"ROUNDDOWN(B13*'Variabele prijs'!$A$128,0)","v":0}]
[null,null,{"$f":"B14*'Variabele prijs'!$A$128","v":{"v":0,"d":"0.0000"}},{"$f":"ROUNDDOWN(B14*'Variabele prijs'!$A$128,2)","v":{"v":0,"d":"0.00"}},{"$f":"ROUNDDOWN(B14*'Variabele prijs'!$A$128,0)","v":0}]
[null,null,{"$f":"B15*'Variabele prijs'!$A$128","v":{"v":0,"d":"0.0000"}},{"$f":"ROUNDDOWN(B15*'Variabele prijs'!$A$128,2)","v":{"v":0,"d":"0.00"}},{"$f":"ROUNDDOWN(B15*'Variabele prijs'!$A$128,0)","v":0}]
[null,null,{"$f":"B16*'Variabele prijs'!$A$128","v":{"v":0,"d":"0.0000"}},{"$f":"ROUNDDOWN(B16*'Variabele prijs'!$A$128,2)","v":{"v":0,"d":"0.00"}},{"$f":"ROUNDDOWN(B16*'Variabele prijs'!$A$128,0)","v":0}]
[null,null,{"$f":"B17*'Variabele prijs'!$A$128","v":{"v":0,"d":"0.0000"}},{"$f":"ROUNDDOWN(B17*'Variabele prijs'!$A$128,2)","v":{"v":0,"d":"0.00"}},{"$f":"ROUNDDOWN(B17*'Variabele prijs'!$A$128,0)","v":0}]
[null,null,{"$f":"B18*'Variabele prijs'!$A$128","v":{"v":0,"d":"0.0000"}},{"$f":"ROUNDDOWN(B18*'Variabele prijs'!$A$128,2)","v":{"v":0,"d":"0.00"}},{"$f":"ROUNDDOWN(B18*'Variabele prijs'!$A$128,0)","v":0}]
[null,null,{"$f":"B19*'Variabele prijs'!$A$128","v":{"v":0,"d":"0.0000"}},{"$f":"ROUNDDOWN(B19*'Variabele prijs'!$A$128,2)","v":{"v":0,"d":"0.00"}},{"$f":"ROUNDDOWN(B19*'Variabele prijs'!$A$128,0)","v":0}]
[null,null,{"$f":"B20*'Variabele prijs'!$A$128","v":{"v":0,"d":"0.0000"}},{"$f":"ROUNDDOWN(B20*'Variabele prijs'!$A$128,2)","v":{"v":0,"d":"0.00"}},{"$f":"ROUNDDOWN(B20*'Variabele prijs'!$A$128,0)","v":0}]
[null,null,{"$f":"B21*'Variabele prijs'!$A$128","v":{"v":0,"d":"0.0000"}},{"$f":"ROUNDDOWN(B21*'Variabele prijs'!$A$128,2)","v":{"v":0,"d":"0.00"}},{"$f":"ROUNDDOWN(B21*'Variabele prijs'!$A$128,0)","v":0}]
[null,null,{"$f":"B22*'Variabele prijs'!$A$128","v":{"v":0,"d":"0.0000"}},{"$f":"ROUNDDOWN(B22*'Variabele prijs'!$A$128,2)","v":{"v":0,"d":"0.00"}},{"$f":"ROUNDDOWN(B22*'Variabele prijs'!$A$128,0)","v":0}]
[null,null,{"$f":"B23*'Variabele prijs'!$A$128","v":{"v":0,"d":"0.0000"}},{"$f":"ROUNDDOWN(B23*'Variabele prijs'!$A$128,2)","v":{"v":0,"d":"0.00"}},{"$f":"ROUNDDOWN(B23*'Variabele prijs'!$A$128,0)","v":0}]
[null,null,{"$f":"B24*'Variabele prijs'!$A$128","v":{"v":0,"d":"0.0000"}},{"$f":"ROUNDDOWN(B24*'Variabele prijs'!$A$128,2)","v":{"v":0,"d":"0.00"}},{"$f":"ROUNDDOWN(B24*'Variabele prijs'!$A$128,0)","v":0}]

{"sheet":"Tarieven HH klanten","index":3,"n_rows":35,"n_cols":5,"rows_kept":35,"merged":[[1,1,1,4],[2,0,2,4]]}
["Itemnr."]
["HH-DW",{"$f":"_xlfn.CONCAT(\"Gereguleerde eenmalige tarieven (excl. BTW) voor productie en levering DRINKWATER (excl. Saneringsbijdragen / vergoedingen)\nvoor Huishoudelijke klanten in \", 'Variabele prijs'!B1)","v":"Gereguleerde eenmalige tarieven (excl. BTW) voor productie en levering DRINKWATER (excl. Saneringsbijdragen / vergoedingen)\nvoor Huishoudelijke klanten in JAAR"}]
[]
["HH - DW 4","Andere vergoeding(en)\nGelieve de facturatie-eenheid te vermelden: /stuk, /Lm,  /uur, /km, …",{"$f":"_xlfn.CONCAT(\"Tarief \", 'Variabele prijs'!$B$1)","v":"Tarief JAAR"},"Facturatie-eenheid","Opmerkingen / toelichtingen"]
["4.1","Tarief voor een residentiële aansluiting ('basis/minimum-pakket')\nSpecificeer de inhoud van het basispakket bij opmerkingen\nVb. Watermeter +  X meter buis + ….."]
["4.2","Meerprijs (bovenop basispakket) voor een residentiele aansluiting\n(Specificeer bij opmerkingen)"]
["4.3","Tarief voor een  residentiële heraansluiting\nVb. Opnieuw openen (heraansluiting) toevoer, heraansluiting na verplaatsing meter, …"]
["4.4","Tarief 1ste (verplichte) keuring van een residentiële installatie"]
["4.5","Tarief 2de, 3de keuring van een residentiële installatie\nVb. Herkeuring na een eerste negatieve keuring, …"]
["4.6","Tarief voor controle van een residentiële installatie"]
["4.7","Tarief voor 1 jaarlijkse meteropname"]
["4.8","Tarief voor een 2de, 3de, ... meteropname binnen 1 jaar"]
["4.9","Tarief vervangen defecte meter (nalatigheid klant)"]
["4.10","Tarief vervangen defecte meter (geen nalatigheid klant)"]
["4.11","Tarief ijken watermeter"]
["4.12","Tarief interventie - Verplaatsingsvergoeding(en)"]
["4.13","Tarief interventie - Uur-tarief gepresteerde uren binnen reguliere werktijd"]
["4.14","Tarief interventie - Uur-tarief gepresteerde uren buiten reguliere werktijd"]
["4.15","Tarief interventie - Vast (dag)tarief binnen reguliere werktijd"]
["4.16","Tarief interventie - Vast (dag)tarief buiten reguliere werktijd"]
["4.17","Tarief interventie - Verbruikt materiaal"]
["4.18","Tarief interventie - Aangerekend tarief bij niet-nakomen (door klant) van gemaakte afspraken\nVb. toegang tot de residentie niet mogelijk => 2de interventie vereist"]
["4.19","Tarief interventie (indien 'anders' dan bovenstaande)\nSpecificeer bij op merkingen + geef facturatie-eenheid"]
["4.20","Tarief bij Wanbetaling - 1ste aanmaning"]
["4.21","Tarief bij Wanbetaling - 2de aanmaning"]
["4.22","Tarief bij Wanbetaling - 3de aanmaning"]
["4.23","Tarief bij Wanbetaling - Aangetekende aanmaning"]
["4.24","Tarief bij Wanbetaling - Aangerekende administratie / dossierkosten"]
["4.25","Tarief bij Wanbetaling (indien 'anders' dan bovenstaande)\nSpecificeer wat, hoeveel en wanneer in het proces bij opmerkingen"]
["4.26","Aangerekende administratie / dossierkosten (GEEN probleemdossier)"]
["4.27","Korting bij domiciliering"]
[4.28,"Waterscan"]
["HH-DW B4","Andere - bijkomende 'Andere vergoedingen'\nVervolledig lijst met alle hierboven ontbrekende, maar in de tarifaire periode toe te passen  vergoedingen",{"$f":"_xlfn.CONCAT(\"Tarief \", 'Variabele prijs'!$B$1)","v":"Tarief JAAR"},"Facturatie-eenheid","Opmerkingen / toelichtingen"]
["B 4.1","Andere (specificeer)"]
["HH-DW 4","Bijkomende relevante informatie"]

{"sheet":"Tarieven NIET-HH klanten","index":4,"n_rows":35,"n_cols":5,"rows_kept":35,"merged":[[1,1,1,4],[2,0,2,4]]}
["Itemnr."]
["NHH-DW",{"$f":"_xlfn.CONCAT(\"Gereguleerde eenmalige tarieven (excl. BTW) voor productie en levering DRINKWATER (excl. Saneringsbijdragen / vergoedingen)\nvoor NIET-Huishoudelijke klanten in \", 'Variabele prijs'!B1)","v":"Gereguleerde eenmalige tarieven (excl. BTW) voor productie en levering DRINKWATER (excl. Saneringsbijdragen / vergoedingen)\nvoor NIET-Huishoudelijke klanten in JAAR"}]
[]
["NHH-DW 5","Andere vergoeding(en)\nGelieve de facturatie-eenheid te vermelden: /stuk, /Lm,  /uur, /km, …",{"$f":"_xlfn.CONCAT(\"Tarief \", 'Variabele prijs'!$B$1)","v":"Tarief JAAR"},"Facturatie-eenheid","Opmerkingen / toelichtingen"]
["5.1","Tarief voor een aansluiting ('basis/minimum-pakket')\nSpecificeer de inhoud van het basispakket bij opmerkingen\nVb. Watermeter +  X meter buis + ….."]
["5.2","Meerprijs (bovenop basispakket) van voor een aansluiting\n(Specificeer bij opmerkingen)"]
["5.3","Tarief voor een heraansluiting\nVb. Opnieuw openen (heraansluiting) toevoer, heraansluiting na verplaatsing meter"]
["5.4","Tarief 1ste (verplichte) keuring van een installatie"]
["5.5","Tarief 2de, 3de keuring van een installatie\nVb. Herkeuring na een eerste negatieve keuring"]
["5.6","Tarief voor controle van een installatie"]
["5.7","Tarief voor 1 jaarlijkse meteropname"]
["5.8","Tarief voor een 2de, 3de, ... meteropname binnen 1 jaar"]
["5.9","Tarief vervangen defecte meter (nalatigheid klant)"]
["5.10","Tarief vervangen defecte meter (geen nalatigheid klant)"]
["5.11","Tarief ijken watermeter"]
["5.12","Tarief interventie - Verplaatsingsvergoeding(en)"]
["5.13","Tarief interventie - Uur-tarief gepresteerde uren binnen reguliere werktijd"]
["5.14","Tarief interventie - Uur-tarief gepresteerde uren buiten reguliere werktijd"]
["5.15","Tarief interventie - Vast (dag) tarief binnen reguliere werktijd"]
["5.16","Tarief voor een interventie - Vast (dag) tarief buiten reguliere werktijd"]
["5.17","Tarief interventie - Verbruikt materiaal"]
["5.18","Tarief interventie - Aangerekend tarief bij niet-nakomen (door klant) van gemaakte afspraken\nVb. toegang tot de residentie niet mogelijk => 2de interventie vereist"]
["5.19","Tarief interventie (indien 'anders' dan bovenstaande)\nSpecificeer bij op merkingen + geef facturatie-eenheid"]
["5.20","Tarief bij Wanbetaling - 1ste aanmaning"]
["5.21","Tarief bij Wanbetaling - 2de aanmaning"]
["5.22","Tarief bij Wanbetaling - 3de aanmaning"]
["5.23","Tarief bij Wanbetaling - Aangetekende aanmaning"]
["5.24","Tarief bij Wanbetaling - Aangerekende administratie / dossierkosten"]
["5.25","Tarief bij Wanbetaling (indien 'anders' dan bovenstaande)\nSpecificeer wat, hoeveel en wanneer in het proces bij opmerkingen"]
["5.26","Aangerekende administratie / dossierkosten (GEEN probleemdossier)"]
["5.27","Korting bij domiciliering"]
[5.28,"Waterscan"]
["NHH-DW B5","Andere - bijkomende 'Andere vergoedingen' \nVervolledig lijst met alle hierboven ontbrekende, maar in de tarifaire periode toe te passen  vergoedingen",{"$f":"_xlfn.CONCAT(\"Tarief \", 'Variabele prijs'!$B$1)","v":"Tarief JAAR"},"Facturatie-eenheid","Opmerkingen / toelichtingen"]
["B 5.1","Andere  1 (specificeer)"]
["NHH-DW 5","Bijkomende relevante informatie"]

{"sheet":"Occasioneel NIET-klantgebonden","index":5,"n_rows":21,"n_cols":6,"rows_kept":21,"merged":[[1,1,1,5],[2,0,2,5],[20,4,20,5]]}
["Itemnr."]
["NKG",{"$f":"_xlfn.CONCAT(\"Tarieven (excl. BTW) voor occasionele - NIET-klantgebonden vergoedingen in \",'Variabele prijs'!B1)","v":"Tarieven (excl. BTW) voor occasionele - NIET-klantgebonden vergoedingen in JAAR"}]
[]
["NKG 1","Andere vergoeding(en)\nGelieve de facturatie-eenheid te vermelden: /stuk, /Lm,  /uur, /km, …",{"$f":"_xlfn.CONCAT(\"Tarief \", 'Variabele prijs'!$B$1)","v":"Tarief JAAR"},"Facturatie-eenheid","Toepassing","Opmerkingen / toelichtingen"]
["1.1","Tarief voor een werfaansluiting"]
["1.2","Tarief administratie/dossier kosten voor werfaansluiting"]
["1.3","Tarief waarborg voor een werfaansluiting"]
["1.4","Tarief 1 voor verbruik via werfaansluiting\n(specificeer bovengrens onder opmerkingen)"]
["1.5","Tarief 2 voor verbruik via werfaansluiting\n(specificeer bovengrens onder opmerkingen)"]
["1.6","Tarief 3 voor verbruik via werfaansluiting\n(specificeer bovengrens onder opmerkingen)"]
["1.7","Tarief voor gebruik/verhuur standpijp (tijdelijk, permanent)"]
["1.8","Tarief administratie/dossier kosten voor een standpijp"]
["1.9","Tarief waarborg voor een standpijp"]
["1.10","Tarief 1 voor verbruik via standpijp\n(specificeer bovengrens onder opmerkingen)"]
["1.11","Tarief 2 voor verbruik via standpijp\n(specificeer bovengrens onder opmerkingen)"]
["1.12","Tarief 3 voor verbruik via standpijp\n(specificeer bovengrens onder opmerkingen)"]
["1.13","Tarief leveringen aan gemeenten/openbare diensten via brandkranen"]
["1.14","Herstelkosten tgv beschadiging door derden aan eigendommen DWM"]
["NKG B1","Andere - bijkomende 'Vaste vergoedingen'\nVervolledig lijst met alle hierboven ontbrekende, maar in de tarifaire periode toe te passen  vergoedingen",{"$f":"_xlfn.CONCAT(\"Tarief \", 'Variabele prijs'!$B$1)","v":"Tarief JAAR"},"Facturatie-eenheid","Toepassing","Opmerkingen / toelichtingen"]
["B 1.1","Andere (specificeer)"]
["NKG 1","Bijkomende relevante informatie"]